fUST/lending_fUST_20260114
["ID","MTS","AMOUNT","RATE_DAILY","PERIOD"]
[401814361,1768380649320,-2700.0,0.00018056,2]
[401814362,1768380649329,-4500.0,0.00018082,2]
[401814363,1768380649338,-4500.0,0.00018082,2]
[401814364,1768380649347,-4500.0,0.00018082,2]
[401814365,1768380649356,-102508.3942698,0.00018082,3]
[401814366,1768380649365,-728.0,0.00018084,2]
[401814367,1768380649374,-2614.0,0.00018088,2]
[401814368,1768380649383,-2614.0,0.00018119,2]
[401814371,1768380649475,-2614.0,0.00018121,2]
[401814373,1768380649495,-2614.0,0.00018152,2]
[401814375,1768380649505,-917.48910491,0.00018204,2]
[401814377,1768380649515,-5000.0,0.00018204,2]
[401814379,1768380649525,-5000.0,0.00018204,2]
[401814381,1768380649535,-5000.0,0.00018204,2]
[401814383,1768380649544,-2614.0,0.00018276,2]
[401814385,1768380649553,-1022.67,0.000183,2]
[401814387,1768380649562,-498.51,0.000183,2]
[401814389,1768380649572,-3200.0,0.00018356,2]
[401814391,1768380649581,-2614.0,0.00018362,2]
[401814393,1768380649590,-2614.0,0.00018382,2]
[401814395,1768380649600,-2614.0,0.00018436,2]
[401814397,1768380649609,-553.64373807,0.0001849,2]
[401814399,1768380649618,-2674.60743027,0.0001849,2]
[401814401,1768380649627,-693.510903,0.00018493,2]
[401814403,1768380649636,-3000.0,0.00018604,2]
[401814404,1768380649646,-2614.0,0.0001861,2]
[401814406,1768380649655,-600.0,0.0001863,2]
[401814409,1768380649664,-5000.0,0.0001863,2]
[401814410,1768380649674,-5000.0,0.0001863,2]
[401814413,1768380649683,-5000.0,0.0001863,2]
[401814415,1768380649692,-2614.0,0.00018636,2]
[401814417,1768380649705,-484.62,0.00018735,30]
[401814418,1768380649715,-2614.0,0.00018735,2]
[401814420,1768380649724,-2015.44184525,0.00018752,2]
[401814422,1768380649733,-5500.0,0.00018752,2]
[401814424,1768380649743,-5500.0,0.00018752,2]
[401814426,1768380649753,-4655.81978078,0.00018762,2]
[401814428,1768380649762,-728.0,0.0001886,2]
[401814430,1768380649771,-5000.0,0.00018863,2]
[401814432,1768380649782,-2614.0,0.00018871,2]
[401814434,1768380649791,-1022.67,0.000189,2]
[401814436,1768380649800,-303.10001603,0.000189,2]
[401814438,1768380649810,-498.51,0.000189,2]
[401814440,1768380649819,-303.10001603,0.000189,2]
[401814442,1768380649828,-2614.0,0.00018958,2]
[401814444,1768380649837,-2000.0,0.00018959,7]
[401814446,1768380649846,-3162.0,0.00019021,2]
[401814448,1768380649856,-574.12855637,0.00019038,2]
[401814450,1768380649865,-2773.56790519,0.00019038,2]
[401814452,1768380649874,-303.10001603,0.00019089,2]
[401814454,1768380649883,-303.10001603,0.00019089,2]
[401814456,1768380649893,-3300.0,0.00019152,2]
[401814458,1768380649901,-507.1352,0.00019178,2]
[401814460,1768380649911,-507.1352,0.00019178,2]
[401814462,1768380649920,-200.0,0.00019178,2]
[401814464,1768380649929,-507.1352,0.00019178,2]
[401814466,1768380649938,-507.1352,0.00019178,2]
[401814468,1768380649948,-485.73,0.00019178,2]
[401814470,1768380649957,-150.1,0.00019178,2]
[401814472,1768380649966,-5500.0,0.00019178,2]
[401814474,1768380649976,-5500.0,0.00019178,2]
[401814476,1768380649985,-5500.0,0.00019178,2]
[401814478,1768380649994,-728.0,0.0001918,2]
[401814480,1768380650004,-210.35,0.0001919,2]
[401814482,1768380650013,-40340.44,0.000192,2]
[401814484,1768380650022,-253.24,0.000192,2]
[401814486,1768380650031,-267.88,0.000192,2]
[401814488,1768380650040,-167.76,0.000192,2]
[401814490,1768380650049,-4297.16,0.000192,2]
[401814492,1768380650059,-303.10001603,0.00019278,2]
[401814494,1768380650068,-303.10001603,0.00019278,2]
[401814496,1768380650077,-6000.0,0.000193,2]
[401814498,1768380650086,-6000.0,0.000193,2]
[401814500,1768380650095,-1060.1,0.00019357,2]
[401814502,1768380650105,-1022.67,0.000194,2]
[401814504,1768380650114,-498.51,0.000194,2]
[401814506,1768380650123,-307.61092211,0.00019452,2]
[401814508,1768380650132,-303.10001603,0.00019467,2]
[401814510,1768380650141,-303.10001603,0.00019467,2]
[401814512,1768380650150,-646.16,0.00019549,30]
[401814513,1768380650160,-728.0,0.0001957,2]
[401814515,1768380650169,-595.37131296,0.00019586,2]
[401814517,1768380650178,-2876.18991768,0.00019586,2]
[401814519,1768380650188,-6704.38048432,0.00019586,2]
[401814521,1768380650197,-1000.0,0.00019604,2]
[401814523,1768380650206,-1000.0,0.00019604,2]
[401814525,1768380650215,-14150.53090947,0.00019644,2]
[401814527,1768380650224,-303.10001603,0.00019656,2]
[401814529,1768380650233,-303.10001603,0.00019656,2]
[401814531,1768380650243,-756.20051056,0.000197,2]
[401814533,1768380650253,-800.0,0.00019726,2]
[401814535,1768380650261,-6000.0,0.00019726,2]
[401814537,1768380650271,-6000.0,0.00019726,2]
[401814539,1768380650280,-6000.0,0.00019726,2]
[401814541,1768380650289,-250.0,0.00019726,2]
[401814543,1768380650299,-180.10806484,0.0001973,2]
[401814545,1768380650309,-1255.84058191,0.00019761,2]
[401814547,1768380650319,-454.65002405,0.00019845,4]
[401814549,1768380650329,-454.65002405,0.00019845,4]
[401814551,1768380650339,-6500.0,0.00019848,2]
[401814553,1768380650348,-6500.0,0.00019848,2]
[401814555,1768380650358,-1022.67,0.000199,2]
[401814557,1768380650368,-498.51,0.000199,2]
[401814559,1768380650377,-9661.0,0.0002,2]
[401814561,1768380650386,-151.55000802,0.0002,2]
[401814563,1768380650395,-507.1352,0.0002,4]
[401814565,1768380650404,-300.0,0.0002,2]
[401814568,1768380650418,-507.1352,0.0002,4]
[401814570,1768380650445,-507.1352,0.0002,4]
[401814572,1768380650455,-507.1352,0.0002,4]
[401814574,1768380650464,-454.65002405,0.00020034,4]
[401814576,1768380650474,-454.65002405,0.00020034,4]
[401814577,1768380650483,-629.0,0.00020076,2]
[401814579,1768380650492,-2147.0,0.00020076,2]
[401814581,1768380650502,-1367.0,0.00020076,2]
[401814584,1768380650512,-417.0,0.00020076,2]
[401814585,1768380650521,-715.0,0.00020076,2]
[401814587,1768380650531,-2982.60894464,0.00020134,2]
[401814589,1768380650540,-728.0,0.0002021,2]
[401814591,1768380650550,-454.65002405,0.00020223,4]
[401814593,1768380650558,-454.65002405,0.00020223,4]
[401814595,1768380650568,-5035.78776006,0.00020245,2]
[401814597,1768380650577,-6500.0,0.00020274,2]
[401814599,1768380650586,-4946.58201638,0.00020274,2]
[401814601,1768380650595,-5402.72600724,0.00020274,2]
[401814603,1768380650605,-2000.0,0.00020274,7]
[401814606,1768380650615,-200.91058964,0.00020274,2]
[401814607,1768380650624,-4297.16,0.000203,2]
[401814609,1768380650633,-807.7,0.00020364,30]
[401814611,1768380650641,-2573.24025849,0.00020396,2]
[401814613,1768380650650,-7000.0,0.00020396,2]
[401814615,1768380650659,-1022.67,0.000204,2]
[401814617,1768380650668,-498.51,0.000204,2]
[401814619,1768380650677,-507.1295,0.00020411,5]
[401814621,1768380650687,-507.1352,0.00020411,5]
[401814623,1768380650696,-507.1352,0.00020411,5]
[401814625,1768380650709,-500.3795,0.00020411,5]
[401814627,1768380650718,-9125.40677033,0.00020411,2]
[401814629,1768380650727,-454.65002405,0.00020412,4]
[401814631,1768380650736,-454.65002405,0.00020412,4]
[401814633,1768380650746,-1798.538388,0.00020548,2]
[401814635,1768380650755,-454.65002402,0.00020601,4]
[401814637,1768380650764,-454.65002405,0.00020601,4]
[401814639,1768380650774,-640.24385345,0.00020682,2]
[401814641,1768380650785,-3092.96547559,0.00020682,2]
[401814643,1768380650794,-40340.44,0.000207,2]
[401814645,1768380650803,-1060.1,0.00020817,2]
[401814647,1768380650813,-1000.0,0.00020822,2]
[401814649,1768380650822,-7000.0,0.00020822,2]
[401814651,1768380650831,-3571.86629735,0.00020866,2]
[401814653,1768380650840,-253.24,0.000209,2]
[401814655,1768380650849,-267.88,0.000209,2]
[401814657,1768380650858,-1022.67,0.000209,2]
[401814659,1768380650867,-498.51,0.000209,2]
[401814661,1768380650876,-4427.0,0.00020923,2]
[401814663,1768380650885,-1389.62540314,0.00020944,2]
[401814665,1768380650894,-2683.87260271,0.00020944,2]
[401814667,1768380650903,-524.86,0.00021,7]
[401814669,1768380650913,-969.24,0.00021179,30]
[401814671,1768380650922,-1887.13744875,0.00021199,2]
[401814673,1768380650931,-663.93287602,0.0002123,2]
[401814675,1768380650940,-3207.40519818,0.0002123,2]
[401814677,1768380650949,-11918.89863879,0.00021235,2]
[401814679,1768380650958,-238.158997,0.00021331,7]
[401814681,1768380650967,-7500.0,0.0002137,2]
[401814683,1768380650976,-1022.67,0.000214,2]
[401814685,1768380650985,-498.51,0.000214,2]
[401814687,1768380650995,-1000.0,0.00021565,10]
[401814689,1768380651003,-1000.0,0.00021565,10]
[401814691,1768380651012,-579.0,0.00021565,10]
[401814693,1768380651023,-2000.0,0.00021589,7]
[401814695,1768380651032,-1374.81495282,0.00021761,2]
[401814697,1768380651042,-688.49839244,0.00021778,2]
[401814699,1768380651051,-3326.07919052,0.00021778,2]
[401814701,1768380651061,-44121.435119,0.00021781,7]
[401814703,1768380651071,-4297.16,0.000218,2]
[401814705,1768380651080,-1022.67,0.000219,2]
[401814707,1768380651089,-498.51,0.000219,2]
[401814709,1768380651098,-693.510903,0.00021918,2]
[401814711,1768380651107,-1200.0,0.00021918,2]
[401814713,1768380651117,-8000.0,0.00021918,2]
[401814715,1768380651126,-1130.78,0.00021993,30]
[401814717,1768380651136,-2113.56,0.00022,7]
[401814719,1768380651144,-14150.53090947,0.00022058,2]
[401814721,1768380651154,-1060.1,0.00022277,2]
[401814723,1768380651163,-167.76,0.000223,7]
[401814725,1768380651172,-713.97283296,0.00022326,2]
[401814727,1768380651181,-3449.14412057,0.00022326,2]
[401814729,1768380651190,-167.12486555,0.00022382,5]
[401814731,1768380651199,-1022.67,0.000224,2]
[401814733,1768380651209,-498.51,0.000224,2]
[401814735,1768380651219,-300.0,0.00022466,2]
[401814737,1768380651229,-200.0,0.00022466,2]
[401814739,1768380651238,-1864.52541442,0.00022466,2]
[401814741,1768380651249,-1292.32,0.00022808,30]
[401814743,1768380651258,-740.38982778,0.00022874,2]
[401814745,1768380651267,-3576.76245303,0.00022874,2]
[401814747,1768380651277,-2000.0,0.00022904,7]
[401814749,1768380651287,-500.0,0.00022996,10]
[401814751,1768380651296,-500.0,0.00022996,10]
[401814753,1768380651306,-500.0,0.00022996,10]
[401814755,1768380651315,-500.0,0.00022996,10]
[401814767,1768380651412,-40340.44,0.00023,2]
[401814769,1768380651425,-1022.67,0.00023,2]
[401814771,1768380651434,-1041.66666667,0.00023,3]
[401814773,1768380651444,-498.51,0.00023,2]
[401814775,1768380651453,-450.0,0.00023014,2]
[401814777,1768380651463,-1400.0,0.00023014,2]
[401814779,1768380651472,-250.0,0.00023014,2]
[401814781,1768380651481,-6198.0,0.00023016,2]
[401814783,1768380651490,-629.0,0.00023076,2]
[401814785,1768380651499,-2147.0,0.00023076,2]
[401814787,1768380651508,-1367.0,0.00023076,2]
[401814789,1768380651517,-417.0,0.00023076,2]
[401814791,1768380651527,-253.24,0.000231,7]
[401814793,1768380651535,-267.88,0.000231,7]
[401814795,1768380651544,-4297.16,0.000231,14]
[401814796,1768380651553,-500.0,0.00023133,10]
[401814799,1768380651562,-500.0,0.00023133,10]
[401814801,1768380651571,-500.0,0.00023133,10]
[401814802,1768380651580,-500.0,0.00023133,10]
[401814805,1768380651590,-283.83301289,0.00023133,10]
[401814807,1768380651599,-1300.0,0.00023145,2]
[401814809,1768380651608,-600.0,0.00023146,2]
[401814811,1768380651617,-500.0,0.00023149,2]
[401814813,1768380651627,-182.95072115,0.0002315,2]
[401814815,1768380651636,-1300.0,0.00023161,2]
[401814817,1768380651646,-1300.0,0.00023216,2]
[401814819,1768380651655,-600.0,0.00023244,2]
[401814821,1768380651664,-600.0,0.00023247,2]
[401814822,1768380651672,-2946.62990631,0.00023255,2]
[401814824,1768380651681,-500.0,0.0002327,10]
[401814826,1768380651690,-500.0,0.0002327,10]
[401814828,1768380651699,-240.44633049,0.0002327,10]
[401814830,1768380651711,-500.0,0.0002327,10]
[401814832,1768380651719,-1300.0,0.00023293,2]
[401814833,1768380651729,-500.0,0.00023327,2]
[401814834,1768380651738,-500.0,0.00023335,2]
[401814835,1768380651749,-791.34915639,0.00023339,2]
[401814836,1768380651758,-600.0,0.0002336,2]
[401814837,1768380651766,-500.0,0.00023407,10]
[401814839,1768380651777,-500.0,0.00023407,10]
[401814841,1768380651786,-795.70663986,0.00023422,2]
[401814843,1768380651795,-3709.10266379,0.00023422,2]
[401814845,1768380651804,-500.0,0.00023434,2]
[401814847,1768380651813,-1300.0,0.00023472,2]
[401814849,1768380651822,-600.0,0.00023482,2]
[401814851,1768380651831,-1022.67,0.000235,2]
[401814853,1768380651840,-498.51,0.000235,2]
[401814855,1768380651849,-10000.0,0.0002351,2]
[401814857,1768380651858,-500.0,0.00023528,2]
[401814859,1768380651867,-500.0,0.0002353,2]
[401814861,1768380651877,-500.0,0.00023544,10]
[401814863,1768380651886,-300.0,0.00023544,10]
[401814865,1768380651895,-600.0,0.00023553,2]
[401814867,1768380651905,-1300.0,0.00023554,2]
[401814869,1768380651914,-600.0,0.00023562,2]
[401814871,1768380651924,-210.92385342,0.00023562,2]
[401814873,1768380651933,-330.0,0.0002359,2]
[401814875,1768380651942,-1453.86,0.00023622,30]
[401814877,1768380651951,-1300.0,0.00023671,2]
[401814879,1768380651960,-1300.0,0.00023679,2]
[401814881,1768380651969,-622.17092249,0.00023681,10]
[401814883,1768380651978,-1300.0,0.00023683,2]
[401814885,1768380651987,-2113.56,0.000237,7]
[401814887,1768380651996,-600.0,0.00023702,2]
[401814889,1768380652005,-500.0,0.00023707,2]
[401814891,1768380652015,-1000.0,0.00023721,10]
[401814893,1768380652024,-1000.0,0.00023721,10]
[401814894,1768380652034,-1000.0,0.00023721,10]
[401814896,1768380652042,-1060.1,0.00023736,2]
[401814898,1768380652051,-500.0,0.00023757,2]
[401814901,1768380652061,-1493.78932374,0.00023761,2]
[401814903,1768380652070,-1300.0,0.00023763,2]
[401814905,1768380652079,-600.0,0.00023779,2]
[401814907,1768380652088,-522.88356834,0.00023793,2]
[401814909,1768380652096,-500.0,0.00023793,2]
[401814911,1768380652105,-499.3,0.00023794,2]
[401814913,1768380652114,-1082.98429516,0.0002381,2]
[401814915,1768380652124,-1300.0,0.00023814,2]
[401814917,1768380652133,-1300.0,0.00023817,2]
[401814919,1768380652142,-600.0,0.00023821,2]
[401814921,1768380652151,-1300.0,0.00023844,2]
[401814923,1768380652161,-1300.0,0.00023874,2]
[401814925,1768380652169,-1300.0,0.00023944,2]
[401814927,1768380652178,-1300.0,0.00023962,2]
[401814929,1768380652188,-3846.33946235,0.0002397,2]
[401814931,1768380652197,-600.0,0.00023998,2]
[401814933,1768380652206,-1041.66666667,0.00024,10]
[401814935,1768380652215,-1041.66666667,0.00024,7]
[401814936,1768380652224,-1022.67,0.00024,2]
[401814939,1768380652234,-1025.12327186,0.00024,2]
[401814941,1768380652243,-498.51,0.00024,2]
[401814943,1768380652252,-2000.0,0.00024019,7]
[401814945,1768380652261,-2000.0,0.00024028,7]
[401814947,1768380652270,-600.0,0.00024029,2]
[401814949,1768380652279,-491.12165105,0.00024035,25]
[401814951,1768380652288,-2000.0,0.00024036,7]
[401814953,1768380652297,-2000.0,0.00024045,7]
[401814955,1768380652306,-2000.0,0.00024054,7]
[401814956,1768380652315,-2000.0,0.00024063,7]
[401814958,1768380652324,-2000.0,0.00024072,7]
[401814961,1768380652333,-600.0,0.00024076,2]
[401814963,1768380652343,-2000.0,0.0002408,7]
[401814965,1768380652353,-2000.0,0.00024089,7]
[401814967,1768380652362,-2000.0,0.00024098,7]
[401814969,1768380652371,-600.0,0.00024104,2]
[401814971,1768380652381,-2000.0,0.00024107,7]
[401814973,1768380652391,-750.0,0.0002411,2]
[401814975,1768380652400,-1601.4141805,0.0002411,2]
[401814977,1768380652411,-1591.0092294,0.0002411,7]
[401814979,1768380652423,-2000.0,0.00024116,7]
[401814981,1768380652433,-2000.0,0.00024124,7]
[401814983,1768380652442,-500.0,0.00024125,2]
[401814985,1768380652452,-2000.0,0.00024133,7]
[401814987,1768380652462,-2000.0,0.00024142,7]
[401814989,1768380652472,-1300.0,0.00024179,2]
[401814991,1768380652481,-1300.0,0.00024184,2]
[401814993,1768380652492,-4297.16,0.000242,14]
[401814995,1768380652501,-500.0,0.00024215,2]
[401814997,1768380652523,-2000.0,0.00024219,7]
[401814999,1768380652546,-600.0,0.0002425,2]
[401815001,1768380652570,-1300.0,0.00024289,2]
[401815003,1768380652594,-40340.44,0.000243,2]
[401815005,1768380652616,-600.0,0.00024357,2]
[401815007,1768380652638,-500.0,0.00024369,2]
[401815009,1768380652661,-600.0,0.00024375,2]
[401815011,1768380652687,-1300.0,0.00024389,2]
[401815014,1768380652713,-253.24,0.000244,7]
[401815015,1768380652733,-267.88,0.000244,7]
[401815018,1768380652756,-1615.4,0.00024437,30]
[401815019,1768380652779,-14150.53090947,0.00024472,2]
[401815021,1768380652800,-2899.54686839,0.0002449,2]
[401815023,1768380652822,-1022.67,0.000245,2]
[401815025,1768380652844,-498.51,0.000245,2]
[401815028,1768380652853,-1300.0,0.00024527,2]
[401815030,1768380652862,-1300.0,0.00024528,2]
[401815032,1768380652871,-500.0,0.00024557,2]
[401815034,1768380652880,-600.0,0.00024561,2]
[401815036,1768380652889,-1300.0,0.00024585,2]
[401815038,1768380652897,-500.0,0.00024612,2]
[401815040,1768380652906,-1300.0,0.00024613,2]
[401815042,1768380652915,-500.0,0.00024637,2]
[401815044,1768380652925,-500.0,0.00024641,2]
[401815046,1768380652935,-900.0,0.00024658,2]
[401815047,1768380652943,-380.0,0.00024658,2]
[401815049,1768380652953,-200.0,0.00024658,2]
[401815051,1768380652962,-500.0,0.00024658,2]
[401815053,1768380652971,-190.0,0.00024684,2]
[401815055,1768380652980,-1300.0,0.00024691,2]
[401815057,1768380652989,-34169.46,0.000247,3]
[401815059,1768380652998,-1300.0,0.00024756,2]
[401815062,1768380653009,-600.0,0.00024757,2]
[401815063,1768380653018,-500.0,0.00024764,2]
[401815065,1768380653027,-901.46550708,0.0002479,2]
[401815067,1768380653037,-500.0,0.00024795,2]
[401815070,1768380653048,-2113.56,0.000248,7]
[401815072,1768380653057,-600.0,0.00024804,2]
[401815074,1768380653066,-491.12165105,0.00024814,26]
[401815076,1768380653076,-2899.54686839,0.00024834,2]
[401815078,1768380653085,-1300.0,0.00024847,2]
[401815080,1768380653095,-500.0,0.00024849,2]
[401815082,1768380653105,-600.0,0.00024851,2]
[401815084,1768380653114,-600.0,0.00024889,2]
[401815086,1768380653123,-500.0,0.00024896,2]
[401815088,1768380653133,-200.0,0.00024899,2]
[401815090,1768380653142,-160.18656469,0.00024899,2]
[401815092,1768380653152,-181.655666,0.000249,7]
[401815094,1768380653161,-216.477356,0.000249,7]
[401815096,1768380653171,-216.477356,0.000249,7]
[401815098,1768380653180,-216.477356,0.000249,7]
[401815100,1768380653190,-382.165336,0.000249,7]
[401815102,1768380653200,-216.477356,0.000249,7]
[401815104,1768380653209,-382.165336,0.000249,7]
[401815106,1768380653218,-382.165336,0.000249,7]
[401815108,1768380653228,-382.165336,0.000249,7]
[401815110,1768380653238,-151.0,0.000249,7]
[401815112,1768380653247,-506.802733,0.000249,7]
[401815114,1768380653256,-506.802733,0.000249,7]
[401815125,1768380653351,-506.802733,0.000249,7]
[401815127,1768380653362,-506.802733,0.000249,7]
[401815129,1768380653372,-886.569727,0.000249,7]
[401815131,1768380653382,-886.569727,0.000249,7]
[401815133,1768380653392,-886.569727,0.000249,7]
[401815135,1768380653402,-886.569727,0.000249,7]
[401815137,1768380653412,-431.74536,0.000249,7]
[401815139,1768380653421,-431.74536,0.000249,7]
[401815141,1768380653430,-431.74536,0.000249,7]
[401815143,1768380653443,-431.74536,0.000249,7]
[401815145,1768380653453,-600.0,0.000249,2]
[401815147,1768380653463,-151.0,0.000249,7]
[401815149,1768380653472,-151.0,0.000249,7]
[401815152,1768380653482,-2067.853556,0.000249,7]
[401815154,1768380653491,-151.0,0.000249,7]
[401815156,1768380653500,-151.0,0.000249,7]
[401815158,1768380653510,-2067.853556,0.000249,7]
[401815160,1768380653519,-151.0,0.000249,7]
[401815162,1768380653528,-3688.352014,0.000249,7]
[401815164,1768380653537,-152.928665,0.000249,7]
[401815166,1768380653547,-3688.352014,0.000249,7]
[401815168,1768380653556,-261.329291,0.000249,7]
[401815169,1768380653565,-3688.352014,0.000249,7]
[401815172,1768380653575,-261.329291,0.000249,7]
[401815174,1768380653584,-653058.728757,0.000249,2]
[401815175,1768380653593,-3688.352014,0.000249,7]
[401815178,1768380653604,-261.329291,0.000249,7]
[401815179,1768380653613,-261.329291,0.000249,7]
[401815181,1768380653623,-671.695781,0.000249,7]
[401815183,1768380653633,-671.695781,0.000249,7]
[401815186,1768380653643,-671.695781,0.000249,7]
[401815188,1768380653652,-671.695781,0.000249,7]
[401815190,1768380653662,-275.55471384,0.000249,7]
[401815191,1768380653671,-151.0,0.000249,7]
[401815194,1768380653681,-151.0,0.000249,7]
[401815195,1768380653690,-151.0,0.000249,7]
[401815197,1768380653702,-151.0,0.000249,7]
[401815199,1768380653713,-151.0,0.000249,7]
[401815201,1768380653722,-151.0,0.000249,7]
[401815203,1768380653732,-151.0,0.000249,7]
[401815205,1768380653742,-151.0,0.000249,7]
[401815208,1768380653752,-151.0,0.000249,7]
[401815210,1768380653763,-151.0,0.000249,7]
[401815212,1768380653774,-151.0,0.000249,7]
[401815214,1768380653784,-174.038823,0.000249,7]
[401815216,1768380653794,-174.038823,0.000249,7]
[401815218,1768380653804,-174.038823,0.000249,7]
[401815220,1768380653813,-174.038823,0.000249,7]
[401815222,1768380653822,-325.053096,0.000249,7]
[401815224,1768380653832,-151.0,0.000249,7]
[401815226,1768380653842,-325.053096,0.000249,7]
[401815227,1768380653851,-325.053096,0.000249,7]
[401815229,1768380653861,-151.0,0.000249,7]
[401815231,1768380653870,-151.0,0.000249,7]
[401815233,1768380653879,-179.049299,0.000249,7]
[401815235,1768380653889,-325.053096,0.000249,7]
[401815237,1768380653899,-151.0,0.000249,7]
[401815239,1768380653908,-179.049299,0.000249,7]
[401815241,1768380653918,-156.579203,0.000249,7]
[401815243,1768380653928,-179.049299,0.000249,7]
[401815245,1768380653937,-179.049299,0.000249,7]
[401815247,1768380653948,-151.0,0.000249,7]
[401815249,1768380653958,-170.441606,0.000249,7]
[401815251,1768380653967,-151.0,0.000249,7]
[401815254,1768380653978,-171.320259,0.000249,7]
[401815255,1768380653989,-151.0,0.000249,7]
[401815258,1768380653999,-202.375128,0.000249,7]
[401815260,1768380654008,-151.0,0.000249,7]
[401815261,1768380654017,-162.301205,0.000249,7]
[401815263,1768380654027,-1873.472322,0.000249,7]
[401815265,1768380654037,-1873.472322,0.000249,7]
[401815267,1768380654046,-151.0,0.000249,7]
[401815269,1768380654056,-1873.472322,0.000249,7]
[401815271,1768380654066,-151.0,0.000249,7]
[401815273,1768380654076,-151.0,0.000249,7]
[401815276,1768380654086,-151.0,0.000249,7]
[401815277,1768380654095,-151.000082,0.000249,7]
[401815280,1768380654105,-1873.472322,0.000249,7]
[401815281,1768380654114,-151.0,0.000249,7]
[401815284,1768380654124,-151.0,0.000249,7]
[401815285,1768380654134,-151.0,0.000249,7]
[401815287,1768380654144,-151.0,0.000249,7]
[401815290,1768380654154,-151.0,0.000249,7]
[401815292,1768380654164,-151.0,0.000249,7]
[401815293,1768380654174,-151.0,0.000249,7]
[401815296,1768380654183,-151.0,0.000249,7]
[401815297,1768380654193,-151.0,0.000249,7]
[401815300,1768380654203,-151.0,0.000249,7]
[401815302,1768380654213,-240.755518,0.000249,7]
[401815303,1768380654222,-189.888962,0.000249,7]
[401815305,1768380654233,-189.888962,0.000249,7]
[401815307,1768380654243,-189.888962,0.000249,7]
[401815309,1768380654253,-189.888962,0.000249,7]
[401815311,1768380654262,-151.0,0.000249,7]
[401815313,1768380654272,-151.0,0.000249,7]
[401815315,1768380654281,-151.0,0.000249,7]
[401815317,1768380654290,-151.0,0.000249,7]
[401815319,1768380654300,-151.0,0.000249,2]
[401815321,1768380654310,-151.0,0.000249,2]
[401815323,1768380654319,-1300.0,0.0002493,2]
[401815325,1768380654330,-371.0,0.00024932,7]
[401815327,1768380654339,-500.0,0.00024932,2]
[401815329,1768380654348,-500.0,0.00024957,2]
[401815331,1768380654357,-500.0,0.00024996,2]
[401815333,1768380654366,-1022.67,0.00025,2]
[401815335,1768380654375,-1041.66666667,0.00025,30]
[401815337,1768380654384,-1019.0,0.00025,2]
[401815339,1768380654393,-371.0,0.00025,7]
[401815341,1768380654403,-498.51,0.00025,2]
[401815343,1768380654413,-500.0,0.00025018,7]
[401815345,1768380654423,-782.85006975,0.0002502,7]
[401815347,1768380654433,-2899.54686839,0.00025046,2]
[401815350,1768380654445,-500.0,0.00025069,2]
[401815352,1768380654454,-500.0,0.00025073,7]
[401815353,1768380654464,-1827.91578915,0.0002509,7]
[401815356,1768380654474,-500.0,0.00025095,7]
[401815358,1768380654483,-500.0,0.00025108,7]
[401815359,1768380654493,-896.0966357,0.00025128,7]
[401815361,1768380654503,-200.0,0.00025133,2]
[401815363,1768380654513,-1060.1,0.00025196,2]
[401815365,1768380654522,-167.76,0.000252,7]